[Event "January 9 Early 2024"]
[Site "https://www.chess.com"]
[Date "2024.01.11"]
[Round "3"]
[White "Derjabin, Ilja"]
[Black "Salem, A.R. Saleh"]
[Result "0-1"]
[Board "87"]
[TimeControl "180+1"]
[WhiteFideId "14104768"]
[BlackFideId "9301348"]
[WhiteElo "2526"]
[BlackElo "2972"]
[WhiteTeam "UKR"]
[BlackTeam "UAE"]
[WhiteClock "0:01:21"]
[BlackClock "0:01:27"]

1. d4 {[%clk 0:03:00]}  Nf6 {[%clk 0:02:58]} 2. c4 {[%clk 0:02:59]}  g6 {[%clk 0:02:59]} 3. Nc3 {[%clk 0:03:00]}  Bg7 {[%clk 0:02:59]} 4. e4 {[%clk 0:03:00]}  d6 {[%clk 0:02:59]} 5. Nge2 {[%clk 0:03:00]}  e5 {[%clk 0:02:58]} 6. d5 {[%clk 0:03:00]}  a5 {[%clk 0:02:57]} 7. Ng3 {[%clk 0:02:59]}  h5 {[%clk 0:02:56]} 8. Be2 {[%clk 0:02:59]}  h4 {[%clk 0:02:56]} 9. Nf1 {[%clk 0:02:59]}  Na6 {[%clk 0:02:49]} 10. Bg5 {[%clk 0:02:56]}  Nc5 {[%clk 0:02:45]} 11. f3 {[%clk 0:02:51]}  Bd7 {[%clk 0:02:33]} 12. Qd2 {[%clk 0:02:47]}  Rh5 {[%clk 0:02:20]} 13. Be3 {[%clk 0:02:29]}  b6 {[%clk 0:02:19]} 14. g4 {[%clk 0:02:22]}  hxg3 {[%clk 0:02:18]} 15. Nxg3 {[%clk 0:02:22]}  Rh3 {[%clk 0:02:11]} 16. Bg5 {[%clk 0:02:19]}  Qe7 {[%clk 0:02:03]} 17. Bf1 {[%clk 0:02:08]}  Rh8 {[%clk 0:01:59]} 18. O-O-O {[%clk 0:02:02]}  O-O-O {[%clk 0:01:57]} 19. h4 {[%clk 0:02:00]}  Kb8 {[%clk 0:01:56]} 20. Kb1 {[%clk 0:01:59]}  Qf8 {[%clk 0:01:54]} 21. Bh3 {[%clk 0:01:52]}  Bh6 {[%clk 0:01:46]} 22. Bxd7 {[%clk 0:01:50]}  Nfxd7 {[%clk 0:01:41]} 23. Bxh6 {[%clk 0:01:36]}  Qxh6 {[%clk 0:01:38]} 24. Qxh6 {[%clk 0:01:35]}  Rxh6 {[%clk 0:01:39]} 25. h5 {[%clk 0:01:36]}  Rdh8 {[%clk 0:01:36]} 26. hxg6 {[%clk 0:01:36]}  fxg6 {[%clk 0:01:37]} 27. Rxh6 {[%clk 0:01:35]}  Rxh6 {[%clk 0:01:36]} 28. Rh1 {[%clk 0:01:36]}  Rxh1+ {[%clk 0:01:35]} 29. Nxh1 {[%clk 0:01:36]}  Nf6 {[%clk 0:01:31]} 30. Kc2 {[%clk 0:01:25]}  Nh7 {[%clk 0:01:27]} 31. Kd2 {[%clk 0:01:21]}  Ng5 {[%clk 0:01:27]} 0-1

[Event "January 9 Early 2024"]
[Site "https://www.chess.com"]
[Date "2024.01.11"]
[Round "3"]
[White "Sultanbek, Zeinep"]
[Black "Mhango, Banele"]
[Result "0-1"]
[Board "89"]
[TimeControl "180+1"]
[WhiteFideId "13710419"]
[BlackFideId "14327040"]
[WhiteElo "2316"]
[BlackElo "2578"]
[WhiteTeam "KAZ"]
[BlackTeam "RSA"]
[WhiteClock "0:00:17"]
[BlackClock "0:00:45"]

1. d4 {[%clk 0:02:29]}  Nf6 {[%clk 0:02:59]} 2. c4 {[%clk 0:02:28]}  e6 {[%clk 0:02:59]} 3. Nf3 {[%clk 0:02:28]}  c5 {[%clk 0:02:59]} 4. d5 {[%clk 0:02:27]}  exd5 {[%clk 0:02:59]} 5. cxd5 {[%clk 0:02:28]}  d6 {[%clk 0:02:58]} 6. Nc3 {[%clk 0:02:28]}  g6 {[%clk 0:02:58]} 7. e4 {[%clk 0:02:28]}  Bg7 {[%clk 0:02:59]} 8. Nd2 {[%clk 0:02:27]}  O-O {[%clk 0:02:49]} 9. Be2 {[%clk 0:02:27]}  b6 {[%clk 0:02:48]} 10. O-O {[%clk 0:02:26]}  Re8 {[%clk 0:02:42]} 11. Re1 {[%clk 0:02:19]}  Na6 {[%clk 0:02:33]} 12. Bb5 {[%clk 0:02:15]}  Rf8 {[%clk 0:02:23]} 13. Nc4 {[%clk 0:02:08]}  Nh5 {[%clk 0:02:13]} 14. Qa4 {[%clk 0:01:44]}  Nb4 {[%clk 0:01:58]} 15. Bc6 {[%clk 0:01:39]}  Nd3 {[%clk 0:00:54]} 16. Rd1 {[%clk 0:01:11]}  Nxc1 {[%clk 0:00:54]} 17. Bxa8 {[%clk 0:01:00]}  Bxc3 {[%clk 0:00:53]} 18. Raxc1 {[%clk 0:00:58]}  Bd4 {[%clk 0:00:52]} 19. Bc6 {[%clk 0:00:37]}  Bg4 {[%clk 0:00:50]} 20. Rxd4 {[%clk 0:00:23]}  cxd4 {[%clk 0:00:50]} 21. Qxa7 {[%clk 0:00:23]}  Bf3 {[%clk 0:00:46]} 22. Nd2 {[%clk 0:00:19]}  Qg5 {[%clk 0:00:45]} 23. Rc2 {[%clk 0:00:17]}  Qxg2# {[%clk 0:00:45]} 0-1

[Event "January 9 Early 2024"]
[Site "https://www.chess.com"]
[Date "2024.01.11"]
[Round "3"]
[White "Mishra, Manoj"]
[Black "Xu, Daniel"]
[Result "0-1"]
[Board "91"]
[TimeControl "180+1"]
[WhiteFideId "5006007"]
[BlackFideId "2627345"]
[WhiteElo "2261"]
[BlackElo "2480"]
[WhiteTeam "IND"]
[BlackTeam "CAN"]
[WhiteClock "0:00:24"]
[BlackClock "0:00:39"]

1. d4 {[%clk 0:02:57]}  Nf6 {[%clk 0:02:59]} 2. Bg5 {[%clk 0:02:52]}  d5 {[%clk 0:02:59]} 3. e3 {[%clk 0:02:51]}  c5 {[%clk 0:02:57]} 4. Bxf6 {[%clk 0:02:48]}  gxf6 {[%clk 0:02:55]} 5. dxc5 {[%clk 0:02:49]}  e6 {[%clk 0:02:53]} 6. Nc3 {[%clk 0:02:37]}  Bxc5 {[%clk 0:02:53]} 7. Qh5 {[%clk 0:02:35]}  Nc6 {[%clk 0:02:48]} 8. O-O-O {[%clk 0:02:33]}  Qe7 {[%clk 0:02:19]} 9. Nf3 {[%clk 0:02:22]}  f5 {[%clk 0:02:05]} 10. Bb5 {[%clk 0:02:09]}  Bd7 {[%clk 0:02:04]} 11. Bxc6 {[%clk 0:02:07]}  Bxc6 {[%clk 0:02:01]} 12. Ne5 {[%clk 0:02:08]}  Bd6 {[%clk 0:01:54]} 13. Nxc6 {[%clk 0:01:57]}  bxc6 {[%clk 0:01:53]} 14. Qh6 {[%clk 0:01:49]}  Be5 {[%clk 0:01:45]} 15. Rd3 {[%clk 0:01:36]}  Rb8 {[%clk 0:01:44]} 16. a3 {[%clk 0:01:30]}  Qb7 {[%clk 0:01:27]} 17. b3 {[%clk 0:01:20]}  Qa6 {[%clk 0:01:17]} 18. Na4 {[%clk 0:01:06]}  Bd6 {[%clk 0:00:58]} 19. Kb2 {[%clk 0:00:48]}  Qxa4 {[%clk 0:00:52]} 20. Qf6 {[%clk 0:00:42]}  Qxa3+ {[%clk 0:00:48]} 21. Kb1 {[%clk 0:00:41]}  Rf8 {[%clk 0:00:40]} 22. c4 {[%clk 0:00:24]}  Rxb3+ {[%clk 0:00:39]} 0-1

[Event "January 9 Early 2024"]
[Site "https://www.chess.com"]
[Date "2024.01.11"]
[Round "3"]
[White "Rodriguez Avila, Alvaro"]
[Black "Thake, Conrad"]
[Result "1-0"]
[Board "92"]
[TimeControl "180+1"]
[WhiteFideId "24570249"]
[BlackFideId "5602947"]
[WhiteElo "2315"]
[BlackElo "1837"]
[WhiteTeam "ESP"]
[BlackTeam "MLT"]
[WhiteClock "0:00:37"]
[BlackClock "0:00:59"]

1. e4 {[%clk 0:03:00]}  c5 {[%clk 0:02:59]} 2. Nf3 {[%clk 0:03:01]}  d6 {[%clk 0:02:58]} 3. d4 {[%clk 0:03:01]}  cxd4 {[%clk 0:02:58]} 4. Nxd4 {[%clk 0:03:02]}  Nf6 {[%clk 0:02:58]} 5. Nc3 {[%clk 0:03:02]}  a6 {[%clk 0:02:58]} 6. Bg5 {[%clk 0:03:03]}  e6 {[%clk 0:02:57]} 7. f4 {[%clk 0:03:03]}  Be7 {[%clk 0:02:57]} 8. Qf3 {[%clk 0:03:04]}  Qc7 {[%clk 0:02:54]} 9. O-O-O {[%clk 0:03:04]}  b5 {[%clk 0:02:46]} 10. Bxf6 {[%clk 0:02:54]}  gxf6 {[%clk 0:02:46]} 11. e5 {[%clk 0:02:31]}  Bb7 {[%clk 0:02:45]} 12. exd6 {[%clk 0:02:16]}  Bxd6 {[%clk 0:02:39]} 13. Qh5 {[%clk 0:02:16]}  Bxf4+ {[%clk 0:02:38]} 14. Kb1 {[%clk 0:02:16]}  Nd7 {[%clk 0:02:29]} 15. Nxe6 {[%clk 0:02:14]}  Qe5 {[%clk 0:02:21]} 16. Nxf4 {[%clk 0:02:08]}  Qxf4 {[%clk 0:02:10]} 17. Bxb5 {[%clk 0:02:05]}  axb5 {[%clk 0:02:04]} 18. Rhe1+ {[%clk 0:02:06]}  Ne5 {[%clk 0:02:02]} 19. g3 {[%clk 0:01:49]}  Qb4 {[%clk 0:01:34]} 20. Rxe5+ {[%clk 0:01:43]}  Kf8 {[%clk 0:01:11]} 21. Rxb5 {[%clk 0:01:35]}  Qe7 {[%clk 0:01:08]} 22. Qh6+ {[%clk 0:01:01]}  Kg8 {[%clk 0:01:01]} 23. Rxb7 {[%clk 0:00:36]}  Qxb7 {[%clk 0:00:59]} 24. Nd5 {[%clk 0:00:37]} 1-0

[Event "January 9 Early 2024"]
[Site "https://www.chess.com"]
[Date "2024.01.11"]
[Round "3"]
[White "Agrest, Inna"]
[Black "Nowak, Lukasz"]
[Result "1-0"]
[Board "95"]
[TimeControl "180+1"]
[WhiteFideId "1708830"]
[BlackFideId "1166760"]
[WhiteElo "2348"]
[BlackElo "2003"]
[WhiteTeam "SWE"]
[BlackTeam "POL"]
[WhiteClock "0:01:00"]
[BlackClock "0:00:09"]

1. e4 {[%clk 0:03:00]}  e6 {[%clk 0:02:55]} 2. d4 {[%clk 0:03:00]}  d5 {[%clk 0:02:55]} 3. Nc3 {[%clk 0:03:01]}  Bb4 {[%clk 0:02:52]} 4. a3 {[%clk 0:03:01]}  Bxc3+ {[%clk 0:02:50]} 5. bxc3 {[%clk 0:03:02]}  dxe4 {[%clk 0:02:49]} 6. Qg4 {[%clk 0:03:02]}  Nf6 {[%clk 0:02:49]} 7. Qxg7 {[%clk 0:03:02]}  Rg8 {[%clk 0:02:48]} 8. Qh6 {[%clk 0:03:03]}  c5 {[%clk 0:02:47]} 9. Ne2 {[%clk 0:03:03]}  Bd7 {[%clk 0:02:46]} 10. Ng3 {[%clk 0:02:59]}  Ba4 {[%clk 0:02:43]} 11. Be2 {[%clk 0:02:14]}  cxd4 {[%clk 0:02:22]} 12. cxd4 {[%clk 0:02:11]}  Qxd4 {[%clk 0:02:05]} 13. Rb1 {[%clk 0:02:08]}  Rg6 {[%clk 0:01:45]} 14. Qd2 {[%clk 0:01:56]}  Qxd2+ {[%clk 0:01:43]} 15. Bxd2 {[%clk 0:01:57]}  Bc6 {[%clk 0:01:41]} 16. O-O {[%clk 0:01:53]}  Nbd7 {[%clk 0:01:39]} 17. c4 {[%clk 0:01:53]}  O-O-O {[%clk 0:01:34]} 18. Bc3 {[%clk 0:01:53]}  Nc5 {[%clk 0:01:26]} 19. Rfd1 {[%clk 0:01:52]}  Rxd1+ {[%clk 0:01:12]} 20. Rxd1 {[%clk 0:01:49]}  Nfd7 {[%clk 0:01:02]} 21. Bh5 {[%clk 0:01:44]}  Rg8 {[%clk 0:00:43]} 22. Bxf7 {[%clk 0:01:44]}  Rd8 {[%clk 0:00:42]} 23. h3 {[%clk 0:01:19]}  Nb6 {[%clk 0:00:31]} 24. Rxd8+ {[%clk 0:01:18]}  Kxd8 {[%clk 0:00:32]} 25. Bd4 {[%clk 0:01:13]}  Nbd7 {[%clk 0:00:19]} 26. Bg8 {[%clk 0:01:06]}  h6 {[%clk 0:00:17]} 27. Bh7 {[%clk 0:01:03]}  Ke7 {[%clk 0:00:17]} 28. Kf1 {[%clk 0:01:00]}  e5 {[%clk 0:00:12]} 29. Be3 {[%clk 0:01:00]}  b6 {[%clk 0:00:09]} 30. Bxh6 {[%clk 0:01:00]} 1-0

[Event "January 9 Early 2024"]
[Site "https://www.chess.com"]
[Date "2024.01.11"]
[Round "3"]
[White "Csonka, Balazs"]
[Black "Livaic, Leon"]
[Result "0-1"]
[Board "97"]
[TimeControl "180+1"]
[WhiteFideId "742910"]
[BlackFideId "14531534"]
[WhiteElo "2705"]
[BlackElo "2923"]
[WhiteTeam "HUN"]
[BlackTeam "CRO"]
[WhiteClock "0:00:03"]
[BlackClock "0:00:36"]

1. e4 {[%clk 0:03:00]}  c5 {[%clk 0:02:57]} 2. Nf3 {[%clk 0:02:59]}  e6 {[%clk 0:02:57]} 3. d4 {[%clk 0:02:55]}  cxd4 {[%clk 0:02:58]} 4. Nxd4 {[%clk 0:02:56]}  Nf6 {[%clk 0:02:59]} 5. Nc3 {[%clk 0:02:55]}  Nc6 {[%clk 0:02:59]} 6. a3 {[%clk 0:02:53]}  d6 {[%clk 0:02:57]} 7. Be3 {[%clk 0:02:49]}  a6 {[%clk 0:02:56]} 8. f3 {[%clk 0:02:49]}  h5 {[%clk 0:02:51]} 9. Bc4 {[%clk 0:02:36]}  Be7 {[%clk 0:02:44]} 10. Ba2 {[%clk 0:02:31]}  Bd7 {[%clk 0:02:36]} 11. O-O {[%clk 0:02:21]}  h4 {[%clk 0:02:33]} 12. f4 {[%clk 0:02:09]}  h3 {[%clk 0:02:19]} 13. g4 {[%clk 0:01:34]}  Rh4 {[%clk 0:02:15]} 14. g5 {[%clk 0:00:47]}  Ng4 {[%clk 0:02:15]} 15. Nxc6 {[%clk 0:00:46]}  Bxc6 {[%clk 0:01:18]} 16. Bd4 {[%clk 0:00:46]}  Bxg5 {[%clk 0:01:08]} 17. fxg5 {[%clk 0:00:47]}  Qxg5 {[%clk 0:01:08]} 18. Kh1 {[%clk 0:00:17]}  Ne3 {[%clk 0:01:07]} 19. Rg1 {[%clk 0:00:14]}  Qf4 {[%clk 0:00:37]} 20. Bxe3 {[%clk 0:00:03]}  Bxe4+ {[%clk 0:00:36]} 0-1

[Event "January 9 Early 2024"]
[Site "https://www.chess.com"]
[Date "2024.01.11"]
[Round "3"]
[White "Tikhonov, Viacheslav"]
[Black "Darmanin, Jake"]
[Result "1-0"]
[Board "98"]
[TimeControl "180+1"]
[WhiteFideId "44196407"]
[BlackFideId "5601061"]
[WhiteElo "2540"]
[BlackElo "2316"]
[WhiteTeam "RUS"]
[BlackTeam "MLT"]
[WhiteClock "0:00:10"]
[BlackClock "0:00:51"]

1. e4 {[%clk 0:03:00]}  e5 {[%clk 0:03:00]} 2. Nf3 {[%clk 0:03:00]}  Nc6 {[%clk 0:03:00]} 3. Bc4 {[%clk 0:03:00]}  Nf6 {[%clk 0:02:59]} 4. Ng5 {[%clk 0:03:01]}  d5 {[%clk 0:02:59]} 5. exd5 {[%clk 0:03:02]}  Na5 {[%clk 0:03:00]} 6. Bb5+ {[%clk 0:03:02]}  c6 {[%clk 0:03:01]} 7. dxc6 {[%clk 0:03:03]}  bxc6 {[%clk 0:03:01]} 8. Be2 {[%clk 0:03:04]}  h6 {[%clk 0:02:54]} 9. Nh3 {[%clk 0:03:03]}  Nd5 {[%clk 0:02:48]} 10. Nc3 {[%clk 0:02:58]}  Bxh3 {[%clk 0:02:42]} 11. gxh3 {[%clk 0:02:56]}  Nf4 {[%clk 0:02:43]} 12. d4 {[%clk 0:02:36]}  Ng2+ {[%clk 0:02:27]} 13. Kf1 {[%clk 0:02:36]}  exd4 {[%clk 0:02:28]} 14. Kxg2 {[%clk 0:02:20]}  dxc3 {[%clk 0:02:28]} 15. Bf3 {[%clk 0:02:02]}  cxb2 {[%clk 0:02:19]} 16. Qxd8+ {[%clk 0:01:26]}  Rxd8 {[%clk 0:02:18]} 17. Bxb2 {[%clk 0:01:24]}  Rd6 {[%clk 0:02:03]} 18. Rhe1+ {[%clk 0:01:11]}  Kd7 {[%clk 0:01:50]} 19. Bg4+ {[%clk 0:01:10]}  Kc7 {[%clk 0:01:47]} 20. Be5 {[%clk 0:01:09]}  Nc4 {[%clk 0:01:44]} 21. Bg3 {[%clk 0:00:45]}  h5 {[%clk 0:01:34]} 22. Be2 {[%clk 0:00:45]}  h4 {[%clk 0:01:31]} 23. Bxd6+ {[%clk 0:00:44]}  Nxd6 {[%clk 0:01:30]} 24. Bd3 {[%clk 0:00:37]}  g6 {[%clk 0:01:26]} 25. Rab1 {[%clk 0:00:33]}  Bg7 {[%clk 0:01:23]} 26. Re7+ {[%clk 0:00:31]}  Kd8 {[%clk 0:01:19]} 27. Rxa7 {[%clk 0:00:26]}  Nc8 {[%clk 0:01:03]} 28. Rxf7 {[%clk 0:00:24]}  Be5 {[%clk 0:00:56]} 29. Rbb7 {[%clk 0:00:10]}  Rh5 {[%clk 0:00:51]} 30. Rf8# {[%clk 0:00:10]} 1-0

[Event "January 9 Early 2024"]
[Site "https://www.chess.com"]
[Date "2024.01.11"]
[Round "3"]
[White "Eugene, Floryan"]
[Black "Coelho, Ramyres Santana"]
[Result "1-0"]
[Board "99"]
[TimeControl "180+1"]
[WhiteFideId "20694784"]
[BlackFideId "2120690"]
[WhiteElo "2587"]
[BlackElo "2289"]
[WhiteTeam "FRA"]
[BlackTeam "BRA"]
[WhiteClock "0:01:27"]
[BlackClock "0:00:02"]

1. d4 {[%clk 0:03:00]}  Nf6 {[%clk 0:02:59]} 2. Nc3 {[%clk 0:03:01]}  d6 {[%clk 0:02:57]} 3. Nf3 {[%clk 0:02:58]}  g6 {[%clk 0:02:56]} 4. g3 {[%clk 0:02:58]}  Bg7 {[%clk 0:02:56]} 5. Bg2 {[%clk 0:02:59]}  O-O {[%clk 0:02:57]} 6. O-O {[%clk 0:02:59]}  Nc6 {[%clk 0:02:57]} 7. e4 {[%clk 0:02:57]}  e5 {[%clk 0:02:56]} 8. d5 {[%clk 0:02:57]}  Ne7 {[%clk 0:02:57]} 9. Nd2 {[%clk 0:02:52]}  Nd7 {[%clk 0:02:54]} 10. b4 {[%clk 0:02:48]}  a5 {[%clk 0:02:49]} 11. Ba3 {[%clk 0:02:45]}  axb4 {[%clk 0:02:47]} 12. Bxb4 {[%clk 0:02:46]}  f5 {[%clk 0:02:47]} 13. a4 {[%clk 0:02:45]}  f4 {[%clk 0:02:45]} 14. Nb5 {[%clk 0:02:43]}  b6 {[%clk 0:02:42]} 15. c4 {[%clk 0:02:43]}  Nf6 {[%clk 0:02:31]} 16. a5 {[%clk 0:02:41]}  bxa5 {[%clk 0:02:30]} 17. Bxa5 {[%clk 0:02:39]}  Rxa5 {[%clk 0:02:22]} 18. Rxa5 {[%clk 0:02:36]}  c6 {[%clk 0:02:18]} 19. Ra8 {[%clk 0:02:29]}  cxb5 {[%clk 0:02:16]} 20. cxb5 {[%clk 0:02:30]}  Qb6 {[%clk 0:02:10]} 21. Qb3 {[%clk 0:02:27]}  Bb7 {[%clk 0:01:55]} 22. Rxf8+ {[%clk 0:02:26]}  Bxf8 {[%clk 0:01:56]} 23. Nc4 {[%clk 0:02:26]}  Qc5 {[%clk 0:01:43]} 24. Rb1 {[%clk 0:02:06]}  fxg3 {[%clk 0:01:41]} 25. hxg3 {[%clk 0:02:06]}  Ng4 {[%clk 0:01:39]} 26. Rb2 {[%clk 0:02:06]}  Nc8 {[%clk 0:01:07]} 27. Bh3 {[%clk 0:02:04]}  h5 {[%clk 0:01:03]} 28. Bxg4 {[%clk 0:02:03]}  hxg4 {[%clk 0:01:04]} 29. b6 {[%clk 0:02:03]}  Bh6 {[%clk 0:00:48]} 30. Qb4 {[%clk 0:01:54]}  Qd4 {[%clk 0:00:46]} 31. Na5 {[%clk 0:01:47]}  Qd1+ {[%clk 0:00:40]} 32. Kh2 {[%clk 0:01:42]}  Qf1 {[%clk 0:00:36]} 33. Nxb7 {[%clk 0:01:39]}  Bf4 {[%clk 0:00:07]} 34. Qb5 {[%clk 0:01:28]}  Qh3+ {[%clk 0:00:05]} 35. Kg1 {[%clk 0:01:27]}  Bxg3 {[%clk 0:00:04]} 36. fxg3 {[%clk 0:01:28]}  Qxg3+ {[%clk 0:00:04]} 37. Rg2 {[%clk 0:01:28]}  Qe1+ {[%clk 0:00:02]} 38. Qf1 {[%clk 0:01:28]}  Qe2 {[%clk 0:00:02]} 39. Qxe2 {[%clk 0:01:27]} 1-0

[Event "January 9 Early 2024"]
[Site "https://www.chess.com"]
[Date "2024.01.11"]
[Round "3"]
[White "Rangel, Daniel"]
[Black "Kobalia, Mikhail"]
[Result "1/2-1/2"]
[Board "103"]
[TimeControl "180+1"]
[WhiteFideId "2124475"]
[BlackFideId "4119150"]
[WhiteElo "2511"]
[BlackElo "2739"]
[WhiteTeam "BRA"]
[BlackTeam "FID"]
[WhiteClock "0:00:36"]
[BlackClock "0:00:41"]

1. c4 {[%clk 0:03:00]}  e5 {[%clk 0:02:58]} 2. g3 {[%clk 0:03:01]}  g6 {[%clk 0:02:57]} 3. Bg2 {[%clk 0:03:02]}  Bg7 {[%clk 0:02:58]} 4. Nc3 {[%clk 0:03:02]}  d6 {[%clk 0:02:58]} 5. e3 {[%clk 0:03:02]}  f5 {[%clk 0:02:54]} 6. Nge2 {[%clk 0:03:02]}  Nf6 {[%clk 0:02:54]} 7. d3 {[%clk 0:03:01]}  O-O {[%clk 0:02:55]} 8. O-O {[%clk 0:03:00]}  a5 {[%clk 0:02:53]} 9. a3 {[%clk 0:02:59]}  Nbd7 {[%clk 0:02:45]} 10. Rb1 {[%clk 0:02:57]}  g5 {[%clk 0:02:44]} 11. b4 {[%clk 0:02:55]}  axb4 {[%clk 0:02:45]} 12. axb4 {[%clk 0:02:55]}  g4 {[%clk 0:02:45]} 13. Nd5 {[%clk 0:02:40]}  Nxd5 {[%clk 0:02:44]} 14. cxd5 {[%clk 0:02:37]}  Nf6 {[%clk 0:02:44]} 15. Qc2 {[%clk 0:02:33]}  h5 {[%clk 0:02:39]} 16. Bd2 {[%clk 0:02:32]}  h4 {[%clk 0:02:37]} 17. Rfc1 {[%clk 0:02:32]}  Rf7 {[%clk 0:02:37]} 18. b5 {[%clk 0:02:28]}  b6 {[%clk 0:02:37]} 19. Ra1 {[%clk 0:02:23]}  Bb7 {[%clk 0:02:35]} 20. Rxa8 {[%clk 0:02:16]}  Qxa8 {[%clk 0:02:34]} 21. e4 {[%clk 0:02:14]}  h3 {[%clk 0:02:15]} 22. Bf1 {[%clk 0:02:05]}  Qe8 {[%clk 0:02:06]} 23. Ra1 {[%clk 0:01:53]}  Qxb5 {[%clk 0:01:54]} 24. Ra7 {[%clk 0:01:42]}  Bc8 {[%clk 0:01:49]} 25. Rxc7 {[%clk 0:01:35]}  Bd7 {[%clk 0:01:48]} 26. Bg5 {[%clk 0:01:26]}  Qa4 {[%clk 0:01:39]} 27. Rc8+ {[%clk 0:01:11]}  Kh7 {[%clk 0:01:37]} 28. Qxa4 {[%clk 0:01:09]}  Bxa4 {[%clk 0:01:38]} 29. Rb8 {[%clk 0:01:09]}  fxe4 {[%clk 0:01:36]} 30. Bxf6 {[%clk 0:01:07]}  exd3 {[%clk 0:01:25]} 31. Bxg7 {[%clk 0:01:01]}  dxe2 {[%clk 0:01:24]} 32. Bxe2 {[%clk 0:01:02]}  Rxg7 {[%clk 0:01:23]} 33. Rxb6 {[%clk 0:00:51]}  Rc7 {[%clk 0:01:22]} 34. f3 {[%clk 0:00:51]}  gxf3 {[%clk 0:01:17]} 35. Bxf3 {[%clk 0:00:52]}  Rc1+ {[%clk 0:01:16]} 36. Kf2 {[%clk 0:00:50]}  Rc2+ {[%clk 0:01:17]} 37. Kg1 {[%clk 0:00:47]}  Rc1+ {[%clk 0:01:01]} 38. Kf2 {[%clk 0:00:46]}  Rc2+ {[%clk 0:01:01]} 39. Kg1 {[%clk 0:00:36]}  Rc1+ {[%clk 0:00:41]} 1/2-1/2

[Event "January 9 Early 2024"]
[Site "https://www.chess.com"]
[Date "2024.01.11"]
[Round "3"]
[White "Michalski, Olaf"]
[Black "Matveeva, Olga"]
[Result "0-1"]
[Board "108"]
[TimeControl "180+1"]
[WhiteFideId "1106740"]
[BlackFideId "24107018"]
[WhiteElo "2156"]
[BlackElo "2394"]
[WhiteTeam "POL"]
[BlackTeam "RUS"]
[WhiteClock "0:00:02"]
[BlackClock "0:00:56"]

1. d4 {[%clk 0:03:00]}  d5 {[%clk 0:02:59]} 2. c4 {[%clk 0:03:00]}  e6 {[%clk 0:02:59]} 3. Nc3 {[%clk 0:02:59]}  Nf6 {[%clk 0:03:00]} 4. Bg5 {[%clk 0:02:58]}  dxc4 {[%clk 0:02:58]} 5. e3 {[%clk 0:02:50]}  c5 {[%clk 0:02:57]} 6. Nf3 {[%clk 0:02:47]}  Nc6 {[%clk 0:02:56]} 7. Bxc4 {[%clk 0:02:46]}  cxd4 {[%clk 0:02:55]} 8. exd4 {[%clk 0:02:41]}  Be7 {[%clk 0:02:54]} 9. O-O {[%clk 0:02:32]}  O-O {[%clk 0:02:54]} 10. Qd2 {[%clk 0:02:26]}  b6 {[%clk 0:02:48]} 11. Rad1 {[%clk 0:02:25]}  Bb7 {[%clk 0:02:47]} 12. Qf4 {[%clk 0:02:01]}  Nb4 {[%clk 0:02:44]} 13. Ne5 {[%clk 0:01:25]}  Nbd5 {[%clk 0:02:42]} 14. Qg3 {[%clk 0:01:24]}  Rc8 {[%clk 0:02:32]} 15. Bxd5 {[%clk 0:01:05]}  Nxd5 {[%clk 0:02:30]} 16. Bh6 {[%clk 0:00:37]}  Bf6 {[%clk 0:02:29]} 17. Ne4 {[%clk 0:00:37]}  Re8 {[%clk 0:02:11]} 18. Nxf6+ {[%clk 0:00:13]}  Qxf6 {[%clk 0:02:12]} 19. Bg5 {[%clk 0:00:12]}  Qf5 {[%clk 0:02:10]} 20. Rfe1 {[%clk 0:00:13]}  Rc2 {[%clk 0:02:00]} 21. Bh6 {[%clk 0:00:11]}  g6 {[%clk 0:01:41]} 22. Rd3 {[%clk 0:00:11]}  Nf6 {[%clk 0:01:22]} 23. Rf3 {[%clk 0:00:10]}  Bxf3 {[%clk 0:01:21]} 24. gxf3 {[%clk 0:00:10]}  Rxb2 {[%clk 0:01:11]} 25. Rc1 {[%clk 0:00:05]}  Nd5 {[%clk 0:01:10]} 26. Ng4 {[%clk 0:00:04]}  Rxa2 {[%clk 0:01:04]} 27. Qe5 {[%clk 0:00:02]}  Qxe5 {[%clk 0:00:56]} 28. dxe5 {[%clk 0:00:02]} 0-1

[Event "January 9 Early 2024"]
[Site "https://www.chess.com"]
[Date "2024.01.11"]
[Round "3"]
[White "Nouali, Mohamed"]
[Black "Drygalov, Sergey"]
[Result "0-1"]
[Board "110"]
[TimeControl "180+1"]
[WhiteFideId "5502462"]
[BlackFideId "24171743"]
[WhiteElo "2595"]
[BlackElo "2939"]
[WhiteTeam "TUN"]
[BlackTeam "RUS"]
[WhiteClock "0:00:02"]
[BlackClock "0:01:02"]

1. e4 {[%clk 0:03:00]}  c5 {[%clk 0:03:00]} 2. Nf3 {[%clk 0:03:00]}  d6 {[%clk 0:03:00]} 3. d4 {[%clk 0:03:00]}  cxd4 {[%clk 0:03:01]} 4. Nxd4 {[%clk 0:03:01]}  Nf6 {[%clk 0:03:02]} 5. Nc3 {[%clk 0:03:01]}  a6 {[%clk 0:03:03]} 6. Bc4 {[%clk 0:03:01]}  e6 {[%clk 0:03:01]} 7. Bb3 {[%clk 0:03:01]}  Nbd7 {[%clk 0:03:01]} 8. Bg5 {[%clk 0:03:00]}  Nc5 {[%clk 0:03:01]} 9. f4 {[%clk 0:03:01]}  Be7 {[%clk 0:03:00]} 10. Qf3 {[%clk 0:03:01]}  Qc7 {[%clk 0:02:59]} 11. O-O-O {[%clk 0:03:01]}  b5 {[%clk 0:02:52]} 12. Rhe1 {[%clk 0:03:01]}  Bb7 {[%clk 0:02:46]} 13. Bxf6 {[%clk 0:02:50]}  gxf6 {[%clk 0:02:45]} 14. Qh5 {[%clk 0:02:39]}  b4 {[%clk 0:02:36]} 15. Nxe6 {[%clk 0:02:10]}  Nxe6 {[%clk 0:02:27]} 16. Bxe6 {[%clk 0:01:57]}  bxc3 {[%clk 0:02:19]} 17. e5 {[%clk 0:01:19]}  fxe5 {[%clk 0:01:49]} 18. fxe5 {[%clk 0:00:27]}  d5 {[%clk 0:01:49]} 19. Bxf7+ {[%clk 0:00:11]}  Kd8 {[%clk 0:01:49]} 20. Bxd5 {[%clk 0:00:10]}  Bxd5 {[%clk 0:01:49]} 21. Rxd5+ {[%clk 0:00:11]}  Kc8 {[%clk 0:01:48]} 22. Qg4+ {[%clk 0:00:04]}  Kb8 {[%clk 0:01:48]} 23. Rd7 {[%clk 0:00:04]}  Qc5 {[%clk 0:01:40]} 24. Red1 {[%clk 0:00:05]}  Ra7 {[%clk 0:01:35]} 25. Rxa7 {[%clk 0:00:04]}  Qxa7 {[%clk 0:01:32]} 26. Qc4 {[%clk 0:00:03]}  cxb2+ {[%clk 0:01:27]} 27. Kb1 {[%clk 0:00:04]}  Rc8 {[%clk 0:01:25]} 28. Qe6 {[%clk 0:00:03]}  Qc5 {[%clk 0:01:21]} 29. Qb3+ {[%clk 0:00:02]}  Ka8 {[%clk 0:01:19]} 30. a4 {[%clk 0:00:03]}  Qc6 {[%clk 0:01:12]} 31. e6 {[%clk 0:00:03]}  Bf6 {[%clk 0:01:10]} 32. Rd7 {[%clk 0:00:02]}  Qxg2 {[%clk 0:01:02]} 0-1